fUSD/lending_fUSD_20250321
["ID","MTS","AMOUNT","RATE_DAILY","PERIOD"]
[356490622,1742529036786,-239.428248,0.00031478,7]
[356490623,1742529036795,-239.428248,0.00031478,7]
[356490624,1742529036804,-239.428248,0.00031478,7]
[356490625,1742529036813,-239.428248,0.00031478,7]
[356490626,1742529036823,-151.0,0.00031478,7]
[356490627,1742529036832,-151.0,0.00031478,7]
[356490628,1742529036841,-896.408276,0.00031478,7]
[356490629,1742529036850,-896.408276,0.00031478,7]
[356490630,1742529036859,-896.408276,0.00031478,7]
[356490631,1742529036868,-151.0,0.00031478,7]
[356490632,1742529036878,-151.0,0.00031478,7]
[356490633,1742529036887,-896.408276,0.00031478,7]
[356490634,1742529036897,-896.408276,0.00031478,7]
[356490635,1742529036909,-896.408276,0.00031478,7]
[356490636,1742529036918,-151.0,0.00031478,7]
[356490637,1742529036927,-152.677319,0.00031478,7]
[356490638,1742529036937,-151.0,0.00031478,7]
[356490639,1742529036948,-151.0,0.00031478,7]
[356490640,1742529036957,-151.0,0.00031478,7]
[356490641,1742529036966,-151.0,0.00031478,7]
[356490642,1742529036976,-151.0,0.00031478,7]
[356490643,1742529036985,-151.0,0.00031478,7]
[356490644,1742529036994,-151.0,0.00031478,7]
[356490645,1742529037005,-151.0,0.00031478,7]
[356490646,1742529037014,-10000.0,0.00031478,7]
[356490647,1742529037023,-10000.0,0.00031478,7]
[356490648,1742529037032,-10000.0,0.00031478,7]
[356490649,1742529037041,-201.676717,0.00031478,7]
[356490650,1742529037051,-201.676717,0.00031478,7]
[356490651,1742529037060,-201.676717,0.00031478,7]
[356490652,1742529037069,-151.0,0.00031478,7]
[356490653,1742529037078,-151.0,0.00031478,7]
[356490654,1742529037087,-10000.0,0.00031478,7]
[356490655,1742529037096,-10000.0,0.00031478,7]
[356490656,1742529037105,-10000.0,0.00031478,7]
[356490657,1742529037114,-201.676717,0.00031478,7]
[356490658,1742529037123,-201.676717,0.00031478,7]
[356490659,1742529037132,-201.676717,0.00031478,7]
[356490660,1742529037141,-151.0,0.00031478,7]
[356490661,1742529037150,-151.0,0.00031478,7]
[356490662,1742529037159,-10000.0,0.00031478,7]
[356490663,1742529037168,-10000.0,0.00031478,7]
[356490664,1742529037178,-274.8332,0.00031478,7]
[356490665,1742529037187,-274.8332,0.00031478,7]
[356490666,1742529037196,-274.8332,0.00031478,7]
[356490667,1742529037205,-274.8332,0.00031478,7]
[356490668,1742529037214,-318.970256,0.00031478,7]
[356490669,1742529037224,-318.970256,0.00031478,7]
[356490670,1742529037233,-318.970256,0.00031478,7]
[356490671,1742529037242,-318.970256,0.00031478,7]
[356490672,1742529037251,-318.970256,0.00031478,7]
[356490673,1742529037261,-318.970256,0.00031478,7]
[356490674,1742529037270,-166.236188,0.00031478,7]
[356490675,1742529037279,-166.236188,0.00031478,7]
[356490676,1742529037287,-166.236188,0.00031478,7]
[356490677,1742529037296,-166.236188,0.00031478,7]
[356490678,1742529037306,-166.236188,0.00031478,7]
[356490679,1742529037315,-166.236188,0.00031478,7]
[356490680,1742529037325,-272.172635,0.00031478,7]
[356490681,1742529037334,-272.172635,0.00031478,7]
[356490682,1742529037343,-272.172635,0.00031478,7]
[356490683,1742529037353,-272.172635,0.00031478,7]
[356490684,1742529037362,-374.0,0.00031482,5]
[356490685,1742529037371,-151.0,0.00031483,7]
[356490686,1742529037381,-151.0,0.00031483,7]
[356490687,1742529037390,-151.0,0.00031483,7]
[356490688,1742529037400,-236.628472,0.00031483,7]
[356490689,1742529037410,-151.0,0.00031483,7]
[356490690,1742529037419,-151.0,0.00031483,7]
[356490691,1742529037429,-151.0,0.00031483,7]
[356490692,1742529037439,-151.0,0.00031483,7]
[356490693,1742529037449,-151.0,0.00031483,7]
[356490694,1742529037458,-151.0,0.00031483,7]
[356490695,1742529037468,-242.451223,0.00031483,7]
[356490696,1742529037477,-242.451223,0.00031483,7]
[356490697,1742529037487,-242.451223,0.00031483,7]
[356490698,1742529037496,-242.451223,0.00031483,7]
[356490699,1742529037507,-242.451223,0.00031483,7]
[356490700,1742529037517,-242.451223,0.00031483,7]
[356490701,1742529037527,-242.451223,0.00031483,7]
[356490702,1742529037536,-242.451223,0.00031483,7]
[356490703,1742529037546,-242.451223,0.00031483,7]
[356490704,1742529037555,-242.451229,0.00031483,7]
[356490705,1742529037564,-151.0,0.00031483,7]
[356490706,1742529037575,-151.0,0.00031483,7]
[356490707,1742529037585,-151.0,0.00031483,7]
[356490708,1742529037594,-151.0,0.00031483,7]
[356490709,1742529037603,-151.0,0.00031483,7]
[356490710,1742529037614,-151.0,0.00031483,7]
[356490711,1742529037623,-151.0,0.00031483,7]
[356490712,1742529037632,-201.438488,0.00031483,7]
[356490713,1742529037641,-275.949732,0.00031483,7]
[356490714,1742529037651,-275.949732,0.00031483,7]
[356490715,1742529037660,-275.949732,0.00031483,7]
[356490716,1742529037670,-275.949732,0.00031483,7]
[356490717,1742529037680,-275.949732,0.00031483,7]
[356490718,1742529037689,-275.949732,0.00031483,7]
[356490719,1742529037699,-275.949729,0.00031483,7]
[356490720,1742529037708,-1867.48545,0.00031483,7]
[356490721,1742529037717,-1867.48545,0.00031483,7]
[356490722,1742529037727,-1867.48545,0.00031483,7]
[356490723,1742529037736,-1867.48545,0.00031483,7]
[356490724,1742529037746,-1867.48545,0.00031483,7]
[356490725,1742529037755,-1867.48545,0.00031483,7]
[356490726,1742529037765,-1867.48545,0.00031483,7]
[356490727,1742529037774,-1867.48545,0.00031483,7]
[356490728,1742529037783,-1867.48545,0.00031483,7]
[356490729,1742529037793,-1867.485448,0.00031483,7]
[356490730,1742529037802,-323.28033,0.00031483,7]
[356490731,1742529037812,-323.28033,0.00031483,7]
[356490732,1742529037821,-323.28033,0.00031483,7]
[356490733,1742529037830,-323.28033,0.00031483,7]
[356490734,1742529037840,-323.28033,0.00031483,7]
[356490735,1742529037849,-151.0,0.00031483,7]
[356490736,1742529037859,-151.0,0.00031483,7]
[356490737,1742529037868,-151.0,0.00031483,7]
[356490738,1742529037877,-323.28033,0.00031483,7]
[356490739,1742529037887,-266.354386,0.00031483,7]
[356490740,1742529037896,-323.28033,0.00031483,7]
[356490741,1742529037908,-323.28033,0.00031483,7]
[356490742,1742529037917,-323.28033,0.00031483,7]
[356490743,1742529037927,-323.280333,0.00031483,7]
[356490744,1742529037936,-151.0,0.00031483,7]
[356490745,1742529037946,-151.0,0.00031483,7]
[356490746,1742529037956,-151.0,0.00031483,7]
[356490747,1742529037965,-151.0,0.00031483,7]
[356490748,1742529037974,-225.255836,0.00031483,7]
[356490749,1742529037984,-151.0,0.00031483,7]
[356490750,1742529037993,-151.0,0.00031483,7]
[356490751,1742529038003,-151.0,0.00031483,7]
[356490752,1742529038013,-151.0,0.00031483,7]
[356490754,1742529038022,-151.0,0.00031483,7]
[356490755,1742529038031,-151.0,0.00031483,7]
[356490757,1742529038041,-151.0,0.00031483,7]
[356490759,1742529038050,-235.752775,0.00031483,7]
[356490761,1742529038059,-416.942644,0.00031483,7]
[356490762,1742529038069,-416.942644,0.00031483,7]
[356490763,1742529038078,-416.942644,0.00031483,7]
[356490764,1742529038087,-416.942644,0.00031483,7]
[356490765,1742529038096,-416.942644,0.00031483,7]
[356490766,1742529038106,-416.942647,0.00031483,7]
[356490767,1742529038117,-2187.764544,0.00031483,7]
[356490768,1742529038126,-2187.764544,0.00031483,7]
[356490769,1742529038135,-2187.764544,0.00031483,7]
[356490770,1742529038145,-2187.764544,0.00031483,7]
[356490771,1742529038154,-2187.764544,0.00031483,7]
[356490772,1742529038163,-2187.764537,0.00031483,7]
[356490773,1742529038173,-151.0,0.00031483,7]
[356490774,1742529038182,-151.0,0.00031483,7]
[356490775,1742529038192,-222.127776,0.00031483,7]
[356490776,1742529038201,-222.127776,0.00031483,7]
[356490777,1742529038210,-222.127776,0.00031483,7]
[356490778,1742529038219,-222.127776,0.00031483,7]
[356490779,1742529038228,-239.428248,0.00031483,7]
[356490780,1742529038238,-239.428248,0.00031483,7]
[356490781,1742529038247,-239.428248,0.00031483,7]
[356490782,1742529038257,-239.428248,0.00031483,7]
[356490783,1742529038266,-162.050267,0.00031483,7]
[356490784,1742529038276,-896.408276,0.00031483,7]
[356490785,1742529038285,-241.394663,0.00031483,7]
[356490786,1742529038295,-896.408276,0.00031483,7]
[356490787,1742529038305,-896.408276,0.00031483,7]
[356490788,1742529038314,-896.408276,0.00031483,7]
[356490789,1742529038324,-151.0,0.00031483,7]
[356490790,1742529038333,-151.0,0.00031483,7]
[356490791,1742529038343,-151.0,0.00031483,7]
[356490792,1742529038352,-151.0,0.00031483,7]
[356490793,1742529038362,-151.0,0.00031483,7]
[356490794,1742529038371,-5899.94303134,0.00031483,7]
[356490812,1742529038605,-272.172635,0.00031478,7]
[356490814,1742529038614,-227.827365,0.00031483,7]
[356490817,1742529038637,-2507.43057068,0.00031483,7]
[356490819,1742529038648,-1364.79903298,0.00031483,7]
[356490821,1742529038657,-6596.11677304,0.00031483,7]
[356490824,1742529038668,-1247.15688436,0.00031483,7]
[356490890,1742529039296,-200.0,0.00029461,2]
[356490892,1742529039305,-272.172635,0.00031478,7]
[356490894,1742529039314,-2156.7263426,0.00031483,7]
[356490896,1742529039323,-201.676717,0.00031483,7]
[356490898,1742529039332,-201.676717,0.00031483,7]
[356490900,1742529039341,-151.0,0.00031483,7]
[356490902,1742529039350,-151.0,0.00031483,7]
[356490904,1742529039359,-6424.75546078,0.00031483,7]
[356490906,1742529039370,-570.49393853,0.00031483,7]
[356490909,1742529039385,-2683.6833661,0.00031483,7]
[356490979,1742529040201,-321.06723459,0.00031483,7]
[356490980,1742529040211,-245.05491409,0.00031483,7]
[356490981,1742529040310,-558.89350208,0.00029461,2]
[356490982,1742529040556,-31.90139012,0.00029461,2]
[356490983,1742529040568,-524.2051078,0.00029461,2]
[356490984,1742529040577,-1391.42452923,0.00031483,7]
[356490985,1742529040588,-553.10614575,0.00031483,7]
[356490986,1742529040599,-298.78499999,0.00031483,7]
[356490987,1742529040612,-4087.15583209,0.00031483,7]
[356490988,1742529040624,-1240.35979096,0.00031483,7]
[356491292,1742529043766,-2184.11378789,0.00031483,7]
[356491295,1742529043776,-201.676717,0.00031483,7]
[356491297,1742529043785,-201.676717,0.00031483,7]
[356491299,1742529043794,-184.381728,0.00031483,7]
[356491301,1742529043803,-274.8332,0.00031483,7]
[356491303,1742529043812,-274.8332,0.00031483,7]
[356491305,1742529043821,-274.8332,0.00031483,7]
[356491307,1742529043831,-274.8332,0.00031483,7]
[356491309,1742529043839,-318.970256,0.00031483,7]
[356491311,1742529043850,-318.970256,0.00031483,7]
[356491313,1742529043858,-318.970256,0.00031483,7]
[356491315,1742529043867,-318.970256,0.00031483,7]
[356491317,1742529043877,-166.236188,0.00031483,7]
[356491318,1742529043886,-166.236188,0.00031483,7]
[356491319,1742529043895,-70.87314551,0.00031483,7]
[356491320,1742529043909,-201.29948949,0.00031483,7]
[356491321,1742529043918,-272.172635,0.00031483,7]
[356491322,1742529043927,-464.1184116,0.00031484,2]
[356491323,1742529043948,-1691.77503305,0.00031484,2]
[356491324,1742529043957,-568.99079967,0.00031484,2]
[356491325,1742529043966,-151.0,0.00031484,7]
[356491326,1742529043977,-151.0,0.00031484,7]
[356491327,1742529043987,-157.843584,0.00031484,7]
[356491328,1742529043997,-157.843584,0.00031484,7]
[356491329,1742529044007,-151.0,0.00031485,7]
[356491330,1742529044016,-151.0,0.00031485,7]
[356491331,1742529044025,-151.0,0.00031485,7]
[356491332,1742529044034,-151.0,0.00031485,7]
[356491333,1742529044044,-151.0,0.00031485,7]
[356491334,1742529044053,-172.065706,0.00031485,7]
[356491335,1742529044062,-157.843584,0.00031485,7]
[356491336,1742529044072,-157.843584,0.00031485,7]
[356491337,1742529044081,-157.843584,0.00031485,7]
[356491338,1742529044090,-157.843584,0.00031485,7]
[356491339,1742529044100,-157.843584,0.00031485,7]
[356491340,1742529044109,-157.843584,0.00031485,7]
[356491341,1742529044118,-157.843584,0.00031485,7]
[356491342,1742529044127,-33.94552847,0.00031485,7]
[356491415,1742529057391,-151.0,0.00031468,7]
[356491416,1742529080814,-151.0,0.00031468,7]
[356491417,1742529082294,-151.0,0.00031473,7]
[356491418,1742529082318,-130.7408,0.00031476,7]
[356491419,1742529115500,-150.0,0.00030539,4]
[356491420,1742529126726,-150.0,0.00028204,2]
[356491421,1742529232860,347.0,0.00023,90]
[356491422,1742529485087,-150.0,0.00028204,2]
[356491423,1742529593217,-283.74,0.00028204,2]
[356491424,1742529593241,-350.0,0.00029102,2]
[356491425,1742529593263,-146.5286,0.0003,7]
[356491426,1742529601687,-150.0,0.00029101,2]
[356491468,1742530232452,-225.65,0.0002854,2]
[356491469,1742530232462,-350.0,0.00028745,2]
[356491470,1742530232471,-627.98496031,0.0002895,2]
[356491471,1742530232502,-455.36,0.0002895,2]
[356491472,1742530232557,-601.54859924,0.0002895,2]
[356491473,1742530232611,-304.07704045,0.0002895,2]
[356491474,1742530232621,-217.77360995,0.0002895,2]
[356491475,1742530232630,-150.0,0.00029049,2]
[356491476,1742530232640,-1245.44561929,0.0002905,2]
[356491477,1742530232651,-34.55438071,0.0002905,2]
[356491478,1742530232661,-642.0,0.0002905,2]
[356491479,1742530232670,-867.70876426,0.0002905,2]
[356491482,1742530238208,-288.96171118,0.0002905,2]
[356491483,1742530238219,-878.32952456,0.0002905,2]
[356491484,1742530238228,-118.43197934,0.0002905,2]
[356491485,1742530238260,-1153.56802066,0.0002905,2]
[356491486,1742530238270,-787.0,0.0002905,2]
[356491487,1742530238279,-907.0,0.0002905,2]
[356491488,1742530238291,-542.0,0.0002905,2]
[356491489,1742530238301,-4063.35303061,0.0002905,2]
[356491490,1742530238316,-19.64696939,0.0002905,2]
[356491491,1742530238326,-1430.0,0.0002905,2]
[356491492,1742530238519,-151.0,0.0002905,2]
[356491493,1742530238534,-95.05904825,0.0002905,2]
[356491494,1742530238550,-941.57868834,0.0002905,2]
[356491495,1742530238565,-2901.36226341,0.0002905,2]
[356491496,1742530238575,-2904.59773659,0.00029101,2]
[356491498,1742530238586,-2052.01424084,0.00029101,2]
[356491500,1742530238597,-4893.38802257,0.00029101,2]
[356491502,1742530238607,-167.87,0.00030118,2]
[356491504,1742530238616,-795.85933484,0.00030191,2]
[356491506,1742530238627,-204.14066516,0.00030191,2]
[356491508,1742530238637,-190.12,0.00030357,2]
[356491510,1742530238646,-250.0,0.00030421,2]
[356491512,1742530238655,-175.02,0.00030443,120]
[356491514,1742530238665,-168.68008703,0.00030463,2]
[356491516,1742530238677,-515.93991297,0.00030463,2]
[356491517,1742530238686,-175.58,0.00030493,2]
[356491518,1742530238695,-163.23,0.00030517,30]
[356491519,1742530238705,-398.5672721,0.00030539,4]
[356491520,1742530238714,-318.1865824,0.00030548,2]
[356491521,1742530238726,-181.8134176,0.00030548,2]
[356491522,1742530238735,-225.65,0.00030804,2]
[356491523,1742530238744,-184.68019736,0.000309,5]
[356491524,1742530238755,-41.43216638,0.000309,5]
[356491525,1742530238765,-1000.0,0.00031,30]
[356491526,1742530238774,-267.8236,0.00031278,2]
[356491527,1742530238783,-1883.6087,0.00031278,2]
[356491528,1742530238792,-4815.761,0.00031289,2]
[356491529,1742530238801,-603.5172,0.00031289,2]
[356491530,1742530238811,-1609.1152,0.00031289,2]
[356491531,1742530238820,-223.4266,0.00031289,2]
[356491532,1742530238829,-405.69752289,0.0003129,2]
[356491533,1742530238839,-429.2185,0.0003129,2]
[356491534,1742530238851,-834.0151,0.0003129,2]
[356491535,1742530238860,-19720.58979109,0.0003129,2]
[356491537,1742530240762,-90.4854537,0.0003129,2]
[356491538,1742530240774,-22579.95515521,0.0003129,2]
[356491539,1742530240784,-166.7558,0.0003129,2]
[356491540,1742530240794,-1732.172,0.0003129,2]
[356491541,1742530240803,-931.6261,0.00031378,10]
[356491542,1742530240812,-592.979,0.00031386,29]
[356491543,1742530240822,-706.54549238,0.00031386,3]
[356491544,1742530240831,-232.4167,0.00031389,2]
[356491545,1742530240841,-2694.7427,0.00031389,2]
[356491546,1742530240850,-4923.7727,0.00031389,2]
[356491547,1742530240860,-2245.803,0.00031389,2]
[356491548,1742530240870,-3777.33365183,0.00031389,2]
[356491553,1742530240911,-2482.0,0.00031389,2]
[356491567,1742530243322,-462.391,0.00029269,2]
[356491568,1742530243332,-1396.87674817,0.00031389,2]
[356491569,1742530243342,-165.70416804,0.0003139,2]
[356491570,1742530243352,-3024.757589,0.0003139,2]
[356491592,1742530246293,-561.47430016,0.0003139,2]
[356491594,1742530246305,-2647.73328687,0.0003139,2]
[356491596,1742530246346,-710.81898075,0.0003139,2]
[356491597,1742530246357,-419.44452176,0.0003139,2]
[356491598,1742530246452,-6457.74272146,0.0003139,2]
[356491599,1742530246462,-1000.0,0.0003139,2]
[356491600,1742530246471,-8616.84659262,0.0003139,2]
[356491601,1742530246483,-1729.24609705,0.0003139,2]
[356491602,1742530246506,-38548.6271838,0.0003139,2]
[356491611,1742530757455,-150.0,0.00021,2]
[356491612,1742531119573,8082.63554848,9e-05,2]
[356491613,1742531225362,169034.67117459,9.14e-05,2]
[356491618,1742531342908,-238.78545162,9.999e-05,2]
[356491621,1742531381030,-61.21454838,9.999e-05,2]
[356491623,1742531381059,-4539.07422126,0.0001,2]
[356491624,1742531381090,-567.44687091,0.0001,2]
[356491626,1742531381126,-5017.9489969,0.0001,2]
[356491627,1742531382351,-166.23,0.0001,2]
[356491628,1742531392491,10000.0,0.00031499,30]
[356491629,1742531406386,-5371.4493333,0.0001,2]
[356491632,1742531406447,-2360.25776467,0.0001,2]
[356491634,1742531407226,-250.0,0.0001,2]
[356491641,1742531431538,-674.003,0.0001,2]
[356491642,1742531431550,-44914.70325881,0.0001,2]
[356491643,1742531431597,-541.02982009,0.0001,2]
[356491644,1742531431608,-19552.68858613,0.0001,2]
[356491645,1742531431708,-876.49,0.0001,2]
[356491646,1742531431766,-3148.97995,0.0001,2]
[356491647,1742531431777,-51020.04527399,0.0001,2]
[356491648,1742531431827,-638.65289464,0.0001,2]
[356491649,1742531431839,-1158.5934276,0.0001,2]
[356491656,1742531437391,-1104.90149786,0.0001,2]
[356491657,1742531437504,-7524.1778732,0.0001,2]
[356491658,1742531437560,-900.48983006,0.0001,2]
[356491659,1742531437573,-2388.6000052,0.0001,2]
[356491660,1742531437618,-42781.75302735,0.0001,2]
[356491661,1742531437630,-1426.51243399,0.0001,2]
[356491662,1742531437641,-1290.0,0.0001,2]
[356491663,1742531437652,-1011.85,0.0001,2]
[356491664,1742531437664,-612.60000005,0.0001,2]
[356491666,1742531437683,-5602.70304,0.0001,2]
[356491804,1742531439649,-1320.8197475,0.0001,2]
[356491805,1742531439709,-43225.15516035,0.0001,2]
[356491840,1742531442534,-2969.52252222,0.0001,2]
[356491841,1742531442593,-2214.9868571,0.0001,2]
[356491842,1742531442605,-4897.1909532,0.0001,2]
[356491843,1742531442616,-9289.25953684,0.0001,2]
[356491844,1742531443391,-494422.02996881,0.0001,2]
[356491845,1742531445410,-1602.70349695,0.0001,2]
[356491846,1742531445631,-31402.39687458,0.0001,2]
[356491847,1742531445644,-5727.067215,0.0001,2]
[356491848,1742531445689,-1395.09742663,0.0001,2]
[356492007,1742531632272,900.0,0.00031498,30]
[356492008,1742531657547,-187.85653831,9.99e-05,2]
[356492009,1742531669741,300.0,0.00031498,30]
[356492012,1742531910455,710.375,9.8e-05,2]
[356492013,1742531938472,-38044.88767462,9.99e-05,2]
[356492014,1742531938498,-1132893.33593752,0.0001,2]
[356492015,1742531938523,-294.8191246,0.0001,2]
[356492016,1742531959440,-988.45242304,0.000108,2]
[356492017,1742531959462,-350.0,0.00010989,2]
[356492018,1742531959484,-350.0,0.00010989,2]
[356492019,1742531959505,-3835.49240843,0.00011,2]
[356492021,1742532278908,150.00000316,0.00011,4]
[356492036,1742532631559,-150.0,0.00011,2]
[356492037,1742532631569,-350.0,0.000121,2]
[356492038,1742532631579,-350.0,0.000121,2]
[356492039,1742532631590,-500.0,0.00016164,2]
[356492040,1742532631600,-250.0,0.00021,2]
[356492041,1742532631610,-300.0,0.00023,2]
[356492042,1742532631620,-150.0,0.00024133,7]
[356492043,1742532631629,-167.87,0.00024333,2]
[356492044,1742532631639,-129.62535776,0.00025,2]
[356492045,1742532631650,-220.37464224,0.00025,2]
[356492046,1742532631659,-1000.0,0.00025953,2]
[356492047,1742532631668,-250.0,0.00026118,2]
[356492048,1742532631678,-203.08,0.00026816,2]
[356492049,1742532631687,-165.21,0.00026849,2]
[356492050,1742532631696,-412.51,0.00026849,2]
[356492051,1742532631706,-218.57528491,0.000269,4]
[356492052,1742532631715,-400.0,0.00027,2]
[356492053,1742532631725,-163.23,0.00027484,30]
[356492054,1742532631735,-342.31,0.00028056,2]
[356492055,1742532631744,-3158.70530417,0.00028648,2]
[356492056,1742532631768,-2588.1000002,0.00028648,2]
[356492057,1742532631779,-3828.80000002,0.00028648,2]
[356492058,1742532631791,-1128.68085537,0.00028648,2]
[356492061,1742532637690,-2941.43384024,0.00028648,2]
[356492062,1742532637700,-175.58,0.00028843,2]
[356492063,1742532637709,-450.0,0.00029,2]
[356492064,1742532637719,-203.08,0.0002908,2]
[356492065,1742532637729,-7301.59697868,0.0002917,2]
[356492066,1742532637738,-787.0,0.00029179,2]
[356492067,1742532637748,-1268.719,0.00029179,2]
[356492068,1742532637757,-1430.0,0.00029179,2]
[356492069,1742532637768,-4083.0,0.00029179,2]
[356492070,1742532637777,-907.0,0.00029179,2]
[356492071,1742532637788,-3938.0,0.00029179,2]
[356492072,1742532637797,-151.0,0.00029179,2]
[356492073,1742532637807,-150.0,0.00029179,2]
[356492074,1742532637817,-1000.0,0.00029197,2]
[356492075,1742532637826,-500.0,0.00029452,2]
[356492076,1742532637836,-154.15,0.00029866,2]
[356492078,1742532637845,-183.35,0.0003041,120]
[356492080,1742532637855,-411.2767958,0.00030539,4]
[356492082,1742532637865,-500.0,0.00031,2]
[356492084,1742532637877,-203.08,0.00031344,2]
[356492086,1742532637887,-3563.63957349,0.00031389,2]
[356492088,1742532637896,-659.44245962,0.00031389,3]
[356492089,1742532637906,-312.92909914,0.00031389,2]
[356492090,1742532637915,-365.12777061,0.00031389,2]
[356492091,1742532637924,-1594.8344,0.00031389,2]
[356492092,1742532637934,-403.0283,0.00031389,2]
[356492093,1742532637942,-1000.0,0.00031389,2]
[356492094,1742532637952,-98.71491207,0.00031389,2]
[356492096,1742532637963,-2625.2079826,0.00031389,2]
[356492097,1742532637975,-1363.83747749,0.00031389,2]
[356492098,1742532638002,-8402.87019244,0.00031389,2]
[356492099,1742532638013,-4244.89250349,0.00031389,2]
[356492100,1742532638025,-1848.58418204,0.00031389,2]
[356492116,1742532639915,-4000.0,0.00031389,2]
[356492117,1742532639927,-500.0,0.00031389,2]
[356492118,1742532640030,-798.52623198,0.00031389,2]
[356492119,1742532640041,-900.0,0.00031389,2]
[356492120,1742532640052,-1030.82396,0.00031389,2]
[356492121,1742532640062,-7661.23027876,0.00031389,2]
[356492122,1742532640073,-771.96607913,0.00031389,2]
[356492123,1742532640082,-1000.0,0.00031389,2]
[356492124,1742532640092,-1765.1192308,0.00031392,3]
[356492125,1742532640110,-1250.46736825,0.00031392,3]
[356492126,1742532640123,-1984.41340095,0.00031392,3]
[356492127,1742532640133,-165.70416798,0.00031392,2]
[356492128,1742532640143,-45.18243109,0.000314,24]
[356492130,1742532640155,-113.81756891,0.000314,24]
[356492132,1742532640165,-141.171311,0.00031429,2]
[356492179,1742532642700,-1104.34141706,0.00031429,2]
[356492180,1742532642713,-6395.30306764,0.00031429,2]
[356492181,1742532642724,-151.0,0.00031483,2]
[356492182,1742532642734,-150.0,0.00031484,2]
[356492183,1742532642749,-39.28078108,0.00031484,2]
[356492184,1742532642764,-1986.82732598,0.00031484,2]
[356492185,1742532642774,-498.23956915,0.00031486,30]
[356492201,1742532645650,-583.080834,0.00031486,30]
[356492202,1742532645707,-272.32417099,0.00031486,30]
[356492212,1742533831950,-686.38615094,0.00022,2]
[356492213,1742533832007,-313.61384906,0.00022,2]
[356492214,1742533832017,-119.53910714,0.0002799,2]
[356492215,1742533832121,-53.07089286,0.0002799,2]
[356492216,1742533832131,-297.0,0.00028137,2]
[356492217,1742533832143,-294.81912461,0.00029927,2]
[356492218,1742533832154,-167.87,0.00029951,2]
[356492219,1742533832163,-294.81912459,0.00030024,2]
[356492220,1742533832172,-98.69794405,0.00030026,2]
[356492221,1742533832188,-525.94205595,0.00030026,2]
[356492222,1742533832197,-150.0,0.00030026,2]
[356492223,1742533832206,-1500.0,0.00030124,2]
[356492224,1742533832216,-1000.0,0.00030222,2]
[356492225,1742533832225,-15155.68,0.00030254,2]
[356492226,1742533832234,-1895.66,0.00030254,2]
[356492227,1742533832243,-172.61,0.00030254,2]
[356492228,1742533832252,-296.19,0.00030313,2]
[356492229,1742533832262,-2000.0,0.00030351,120]
[356492230,1742533832271,-250.0,0.0003041,2]
[356492231,1742533832280,-300.0,0.00030439,2]
[356492232,1742533832290,-163.23,0.00030503,30]
[356492233,1742533832299,-152.92,0.0003052,120]
[356492234,1742533832308,-308.4575968,0.00030539,4]
[356492235,1742533832317,-350.0,0.00030662,2]
[356492236,1742533832327,-150.0,0.00030682,2]
[356492237,1742533832336,-794.284,0.00030683,27]
[356492238,1742533832346,-2911.41,0.00030683,2]
[356492239,1742533832355,-1014.36400686,0.00030773,2]
[356492240,1742533832365,-9392.55753696,0.00030774,2]
[356492241,1742533832376,-5583.70590166,0.00030774,2]
[356492242,1742533832387,-328.01300429,0.00030774,2]
[356492259,1742533837820,-179.23,0.00030468,2]
[356492260,1742533837830,-494.40795176,0.00030774,2]
[356492261,1742533837842,-22450.35731368,0.00030774,2]
[356492262,1742533837851,-593.9102999,0.00030783,2]
[356492263,1742533837860,-60887.3,0.00030784,2]
[356492264,1742533837870,-171.15,0.00030784,2]
[356492265,1742533837880,-211.28944207,0.000309,5]